fUST/lending_fUST_20250526
["ID","MTS","AMOUNT","RATE_DAILY","PERIOD"]
[362340779,1748207433473,-430.0,0.00019178,2]
[362340780,1748207433483,-431.39,0.00019178,2]
[362340781,1748207433493,-401.14428768,0.00019178,2]
[362340782,1748207433503,-431.61067073,0.00019178,2]
[362340783,1748207433514,-430.0,0.00019178,2]
[362340784,1748207433524,-430.0,0.00019178,2]
[362340785,1748207433534,-430.0,0.00019178,2]
[362340786,1748207433545,-430.0,0.00019178,2]
[362340787,1748207433555,-430.0,0.00019178,2]
[362340788,1748207433565,-430.0,0.00019178,2]
[362340789,1748207433575,-431.40152635,0.00019178,2]
[362340790,1748207433585,-430.0,0.00019178,2]
[362340791,1748207433595,-404.92512795,0.00019178,2]
[362340792,1748207433605,-430.0,0.00019178,2]
[362340793,1748207433616,-430.0,0.00019178,2]
[362340794,1748207433626,-430.80770981,0.00019178,2]
[362340795,1748207433636,-500.0,0.00019178,2]
[362340796,1748207433646,-430.0,0.00019178,2]
[362340797,1748207433657,-430.0,0.00019178,2]
[362340798,1748207433669,-430.0,0.00019178,2]
[362340799,1748207433680,-431.10990926,0.00019178,2]
[362340800,1748207433691,-418.9004,0.00019178,2]
[362340801,1748207433700,-177.63011701,0.00019178,2]
[362340802,1748207433712,-430.0,0.00019178,2]
[362340803,1748207433722,-525.11398757,0.00019178,2]
[362340804,1748207433734,-430.0,0.00019178,2]
[362340805,1748207433744,-431.07858236,0.00019178,2]
[362340806,1748207433754,-430.0,0.00019178,2]
[362340807,1748207433764,-431.31898292,0.00019178,2]
[362340808,1748207433774,-430.0,0.00019178,2]
[362340809,1748207433784,-403.05956044,0.00019178,2]
[362340810,1748207433794,-430.0,0.00019178,2]
[362340811,1748207433804,-430.0,0.00019178,2]
[362340812,1748207433814,-432.85663331,0.00019178,2]
[362340813,1748207433824,-430.0,0.00019178,2]
[362340814,1748207433834,-571.94707076,0.00019178,2]
[362340815,1748207433844,-433.46536059,0.00019178,2]
[362340816,1748207433854,-430.0,0.00019178,2]
[362340817,1748207433864,-469.99,0.00019178,2]
[362340818,1748207433875,-430.66831409,0.00019178,2]
[362340819,1748207433885,-430.0,0.00019178,2]
[362340820,1748207433896,-430.54603059,0.00019178,2]
[362340821,1748207433906,-430.0,0.00019178,2]
[362340822,1748207433915,-415.76938968,0.00019178,2]
[362340823,1748207433925,-401.0998147,0.00019178,2]
[362340824,1748207433938,-430.0,0.00019178,2]
[362340825,1748207433948,-430.55120305,0.00019178,2]
[362340826,1748207433958,-430.0,0.00019178,2]
[362340827,1748207433968,-478.0,0.00019178,2]
[362340828,1748207433978,-430.0,0.00019178,2]
[362340829,1748207433987,-489.9,0.00019178,2]
[362340830,1748207433998,-825.29,0.00019178,2]
[362340831,1748207434008,-433.40130627,0.00019178,2]
[362340832,1748207434018,-430.0,0.00019178,2]
[362340833,1748207434028,-403.91299845,0.00019178,2]
[362340834,1748207434038,-430.0,0.00019178,2]
[362340835,1748207434049,-430.0,0.00019178,2]
[362340836,1748207434059,-430.0,0.00019178,2]
[362340837,1748207434069,-432.64667459,0.00019178,2]
[362340838,1748207434079,-430.0,0.00019178,2]
[362340839,1748207434088,-430.0,0.00019178,2]
[362340840,1748207434098,-408.82727833,0.00019178,2]
[362340841,1748207434108,-405.44056148,0.00019178,2]
[362340842,1748207434118,-431.94957379,0.00019178,2]
[362340843,1748207434128,-430.0,0.00019178,2]
[362340844,1748207434138,-430.0,0.00019178,2]
[362340845,1748207434148,-450.0,0.00019178,2]
[362340846,1748207434158,-433.29933048,0.00019178,2]
[362340847,1748207434168,-430.0,0.00019178,2]
[362340848,1748207434178,-430.0,0.00019178,2]
[362340849,1748207434188,-431.54164494,0.00019178,2]
[362340850,1748207434198,-430.59389948,0.00019178,2]
[362340851,1748207434208,-430.0,0.00019178,2]
[362340852,1748207434218,-402.16397044,0.00019178,2]
[362340853,1748207434228,-430.0,0.00019178,2]
[362340854,1748207434238,-402.05547514,0.00019178,2]
[362340855,1748207434247,-430.0,0.00019178,2]
[362340856,1748207434257,-430.0,0.00019178,2]
[362340857,1748207434267,-431.3922381,0.00019178,2]
[362340858,1748207434276,-403.13121289,0.00019178,2]
[362340859,1748207434287,-430.0,0.00019178,2]
[362340860,1748207434296,-430.71108495,0.00019178,2]
[362340861,1748207434308,-400.0,0.00019178,2]
[362340862,1748207434318,-430.0,0.00019178,2]
[362340863,1748207434327,-431.96434509,0.00019178,2]
[362340864,1748207434337,-430.79264539,0.00019178,2]
[362340865,1748207434347,-406.35753184,0.00019178,2]
[362340866,1748207434357,-430.47614041,0.00019178,2]
[362340867,1748207434367,-430.0,0.00019178,2]
[362340868,1748207434378,-431.53932171,0.00019178,2]
[362340869,1748207434388,-431.88087212,0.00019178,2]
[362340870,1748207434398,-430.0,0.00019178,2]
[362340871,1748207434408,-430.0,0.00019178,2]
[362340872,1748207434418,-430.0,0.00019178,2]
[362340873,1748207434429,-811.73,0.00019178,2]
[362340874,1748207434439,-430.0,0.00019178,2]
[362340875,1748207434448,-403.02955024,0.00019178,2]
[362340876,1748207434459,-432.94340623,0.00019178,2]
[362340877,1748207434470,-408.8396089,0.00019178,2]
[362340878,1748207434482,-434.14660711,0.00019178,2]
[362340879,1748207434493,-430.64900735,0.00019178,2]
[362340880,1748207434503,-430.0,0.00019178,2]
[362340881,1748207434512,-1000.64332476,0.00019178,2]
[362340882,1748207434522,-430.0,0.00019178,2]
[362340883,1748207434532,-430.0,0.00019178,2]
[362340884,1748207434542,-431.67944981,0.00019178,2]
[362340885,1748207434551,-430.8072847,0.00019178,2]
[362340886,1748207434561,-430.0,0.00019178,2]
[362340887,1748207434571,-430.0,0.00019178,2]
[362340888,1748207434583,-621.26,0.00019178,2]
[362340889,1748207434593,-417.89,0.00019178,2]
[362340890,1748207434603,-637.76,0.00019178,2]
[362340891,1748207434613,-402.2231976,0.00019178,2]
[362340892,1748207434623,-431.26906748,0.00019178,2]
[362340893,1748207434632,-430.41777428,0.00019178,2]
[362340894,1748207434642,-507.18152582,0.00019178,2]
[362340895,1748207434652,-562.22968061,0.00019178,2]
[362340896,1748207434664,-824.11,0.00019178,2]
[362340897,1748207434674,-430.0,0.00019178,2]
[362340898,1748207434684,-434.0223265,0.00019178,2]
[362340899,1748207434694,-155.0,0.00019178,2]
[362340900,1748207434703,-433.20175949,0.00019178,2]
[362340901,1748207434714,-430.0,0.00019178,2]
[362340902,1748207434723,-399.90149167,0.00019178,2]
[362340903,1748207434733,-430.84832186,0.00019178,2]
[362340904,1748207434744,-431.98173589,0.00019178,2]
[362340905,1748207434753,-430.0,0.00019178,2]
[362340906,1748207434764,-1521.81,0.00019178,2]
[362340907,1748207434774,-430.0,0.00019178,2]
[362340908,1748207434784,-430.0,0.00019178,2]
[362340909,1748207434794,-431.04214636,0.00019178,2]
[362340910,1748207434804,-431.18459552,0.00019178,2]
[362340911,1748207434814,-431.54354014,0.00019178,2]
[362340912,1748207434836,-430.0,0.00019178,2]
[362340913,1748207434846,-430.0,0.00019178,2]
[362340914,1748207434855,-430.0,0.00019178,2]
[362340915,1748207434865,-430.0,0.00019178,2]
[362340916,1748207434875,-1257.88,0.00019178,2]
[362340917,1748207434885,-432.81462948,0.00019178,2]
[362340918,1748207434895,-430.76774755,0.00019178,2]
[362340919,1748207434905,-430.0,0.00019178,2]
[362340920,1748207434915,-432.12813567,0.00019178,2]
[362340921,1748207434925,-151.0,0.00019178,2]
[362340922,1748207434936,-151.0,0.00019178,2]
[362340923,1748207434946,-151.0,0.00019178,2]
[362340924,1748207434956,-430.0,0.00019178,2]
[362340925,1748207434966,-433.04794232,0.00019178,2]
[362340926,1748207434975,-490.06327976,0.00019178,2]
[362340927,1748207434985,-430.7695933,0.00019178,2]
[362340928,1748207434995,-411.19967233,0.00019178,2]
[362340929,1748207435006,-430.0,0.00019178,2]
[362340930,1748207435016,-430.0,0.00019178,2]
[362340931,1748207435026,-430.82970958,0.00019178,2]
[362340932,1748207435036,-688.18,0.00019178,2]
[362340933,1748207435046,-505.38223243,0.00019178,2]
[362340934,1748207435240,-1017.29,0.00019178,2]
[362340935,1748207435252,-404.45371331,0.00019178,2]
[362340936,1748207435264,-400.0,0.00019178,2]
[362340937,1748207435275,-430.0,0.00019178,2]
[362340938,1748207435286,-430.0,0.00019178,2]
[362340939,1748207435297,-415.51965597,0.00019178,2]
[362340940,1748207435307,-430.0,0.00019178,2]
[362340941,1748207435318,-430.40629675,0.00019178,2]
[362340942,1748207435328,-430.0,0.00019178,2]
[362340943,1748207435338,-400.0,0.00019178,2]
[362340944,1748207435347,-1754.71,0.00019178,2]
[362340945,1748207435357,-430.0,0.00019178,2]
[362340946,1748207435367,-401.6141588,0.00019178,2]
[362340947,1748207435382,-430.0,0.00019178,2]
[362340948,1748207435393,-407.4592938,0.00019178,2]
[362340949,1748207435403,-500.0,0.00019178,2]
[362340950,1748207435412,-430.0,0.00019178,2]
[362340951,1748207435422,-504.13,0.00019178,2]
[362340952,1748207435431,-500.0,0.00019178,2]
[362340953,1748207435441,-500.0,0.00019178,2]
[362340954,1748207435451,-430.0,0.00019178,2]
[362340955,1748207435461,-430.0,0.00019178,2]
[362340956,1748207435470,-430.0,0.00019178,2]
[362340957,1748207435479,-408.81915788,0.00019178,2]
[362340958,1748207435489,-212.55626673,0.00019201,2]
[362340959,1748207435499,-314.64711426,0.00019201,2]
[362340960,1748207435508,-229.13142565,0.00019204,2]
[362340961,1748207435518,-160.0,0.00019204,2]
[362340962,1748207435527,-894.64583333,0.00019204,2]
[362340963,1748207435537,-160.0,0.00019204,2]
[362340964,1748207435546,-423.00916439,0.00019204,2]
[362340965,1748207435556,-160.0,0.00019204,2]
[362340966,1748207435567,-314.64711426,0.00019209,3]
[362340967,1748207435578,-800.0,0.00019209,2]
[362340968,1748207435590,-151.0,0.00019209,2]
[362340969,1748207435600,-500.0,0.00019213,2]
[362340970,1748207435610,-619.13658445,0.00019215,2]
[362340971,1748207435619,-800.0,0.00019239,2]
[362340972,1748207435629,-404.0,0.00019239,2]
[362340973,1748207435640,-800.0,0.00019246,2]
[362340974,1748207435652,-800.0,0.00019256,2]
[362340975,1748207435667,-800.0,0.00019277,2]
[362340976,1748207435680,-800.0,0.00019284,2]
[362340977,1748207435691,-1396.51347961,0.00019314,2]
[362340978,1748207435702,-568.410334,0.00019331,2]
[362340979,1748207435712,-500.0,0.00019358,2]
[362340980,1748207435722,-500.0,0.00019358,2]
[362340981,1748207435734,-500.0,0.00019358,2]
[362340982,1748207435744,-500.0,0.00019358,2]
[362340983,1748207435754,-500.0,0.00019358,2]
[362340984,1748207435763,-488.02860419,0.00019358,2]
[362340985,1748207435774,-500.0,0.00019358,2]
[362340986,1748207435783,-500.0,0.00019358,2]
[362340987,1748207435793,-500.0,0.00019358,2]
[362340988,1748207435805,-500.0,0.00019358,2]
[362340989,1748207435815,-500.0,0.00019358,2]
[362340990,1748207435826,-500.0,0.00019358,2]
[362340991,1748207435836,-500.0,0.00019358,2]
[362340992,1748207435846,-389.11411787,0.00019358,2]
[362340993,1748207435856,-500.0,0.00019358,2]
[362340994,1748207435866,-500.0,0.00019358,2]
[362340995,1748207435876,-561.19056386,0.00019358,2]
[362340996,1748207435887,-500.0,0.00019358,2]
[362340997,1748207435897,-500.0,0.00019358,2]
[362340998,1748207435907,-300.0,0.00019358,2]
[362340999,1748207435919,-151.0,0.00019358,2]
[362341000,1748207435930,-720.0,0.00019359,2]
[362341001,1748207435941,-720.0,0.00019359,2]
[362341002,1748207435953,-720.0,0.00019359,2]
[362341003,1748207435965,-720.0,0.00019359,2]
[362341004,1748207435977,-720.0,0.00019359,2]
[362341005,1748207435989,-720.0,0.00019359,2]
[362341006,1748207436002,-720.0,0.00019359,2]
[362341007,1748207436011,-720.0,0.00019359,2]
[362341008,1748207436022,-720.0,0.00019359,2]
[362341009,1748207436033,-720.0,0.00019359,2]
[362341010,1748207436043,-720.0,0.00019359,2]
[362341011,1748207436054,-720.0,0.00019359,2]
[362341012,1748207436066,-438.90932927,0.00019359,2]
[362341013,1748207436076,-209.53345909,0.00019359,2]
[362341014,1748207436087,-800.0,0.00019383,2]
[362341015,1748207436097,-322.45,0.00019426,2]
[362341016,1748207436106,-894.64583333,0.00019442,3]
[362341017,1748207436115,-151.0,0.00019442,2]
[362341018,1748207436125,-800.0,0.00019445,2]
[362341019,1748207436135,-430.0,0.00019452,2]
[362341020,1748207436145,-430.0,0.00019452,2]
[362341021,1748207436155,-447.45808947,0.00019452,2]
[362341022,1748207436164,-430.0,0.00019452,2]
[362341023,1748207436173,-430.0,0.00019452,2]
[362341024,1748207436182,-430.0,0.00019452,2]
[362341025,1748207436192,-430.0,0.00019452,2]
[362341026,1748207436202,-430.0,0.00019452,2]
[362341027,1748207436211,-430.0,0.00019452,2]
[362341028,1748207436221,-430.0,0.00019452,2]
[362341029,1748207436230,-430.0,0.00019452,2]
[362341030,1748207436239,-430.0,0.00019452,2]
[362341031,1748207436249,-430.0,0.00019452,2]
[362341032,1748207436259,-430.0,0.00019452,2]
[362341033,1748207436269,-430.0,0.00019452,2]
[362341034,1748207436278,-430.0,0.00019452,2]
[362341035,1748207436287,-430.0,0.00019452,2]
[362341036,1748207436297,-430.0,0.00019452,2]
[362341037,1748207436307,-430.0,0.00019452,2]
[362341038,1748207436317,-430.0,0.00019452,2]
[362341039,1748207436327,-430.0,0.00019452,2]
[362341040,1748207436337,-430.0,0.00019452,2]
[362341041,1748207436346,-225.84,0.00019452,2]
[362341042,1748207436357,-430.0,0.00019452,2]
[362341043,1748207436366,-1047.96,0.00019452,2]
[362341044,1748207436375,-430.0,0.00019452,2]
[362341045,1748207436385,-430.0,0.00019452,2]
[362341046,1748207436394,-430.0,0.00019452,2]
[362341047,1748207436404,-280.06987646,0.00019452,2]
[362341048,1748207436413,-430.0,0.00019452,2]
[362341049,1748207436423,-430.0,0.00019452,2]
[362341050,1748207436432,-2824.0,0.00019452,2]
[362341051,1748207436442,-430.0,0.00019452,2]
[362341052,1748207436451,-430.0,0.00019452,2]
[362341053,1748207436460,-430.0,0.00019452,2]
[362341054,1748207436470,-484.05,0.00019452,2]
[362341055,1748207436479,-871.24,0.00019452,2]
[362341056,1748207436488,-430.0,0.00019452,2]
[362341057,1748207436498,-2305.7,0.00019452,2]
[362341058,1748207436508,-1468.36,0.00019452,2]
[362341059,1748207436517,-430.0,0.00019452,2]
[362341060,1748207436526,-430.0,0.00019452,2]
[362341061,1748207436535,-430.0,0.00019452,2]
[362341062,1748207436545,-430.0,0.00019452,2]
[362341063,1748207436556,-1576.05,0.00019452,2]
[362341064,1748207436565,-430.0,0.00019452,2]
[362341065,1748207436575,-430.0,0.00019452,2]
[362341066,1748207436584,-706.49,0.00019452,2]
[362341067,1748207436594,-430.0,0.00019452,2]
[362341068,1748207436604,-430.0,0.00019452,2]
[362341069,1748207436613,-430.0,0.00019452,2]
[362341070,1748207436622,-430.0,0.00019452,2]
[362341071,1748207436631,-430.0,0.00019452,2]
[362341072,1748207436640,-431.39,0.00019452,2]
[362341073,1748207436649,-430.0,0.00019452,2]
[362341074,1748207436660,-430.0,0.00019452,2]
[362341075,1748207436670,-430.0,0.00019452,2]
[362341076,1748207436679,-430.0,0.00019452,2]
[362341077,1748207436688,-430.0,0.00019452,2]
[362341078,1748207436697,-430.0,0.00019452,2]
[362341079,1748207436706,-500.0,0.00019452,2]
[362341080,1748207436716,-430.0,0.00019452,2]
[362341081,1748207436726,-430.0,0.00019452,2]
[362341082,1748207436735,-430.0,0.00019452,2]
[362341083,1748207436745,-430.0,0.00019452,2]
[362341084,1748207436755,-430.0,0.00019452,2]
[362341085,1748207436765,-430.0,0.00019452,2]
[362341086,1748207436774,-469.99,0.00019452,2]
[362341087,1748207436785,-430.0,0.00019452,2]
[362341088,1748207436795,-489.9,0.00019452,2]
[362341089,1748207436804,-825.29,0.00019452,2]
[362341090,1748207436814,-430.0,0.00019452,2]
[362341091,1748207436823,-430.0,0.00019452,2]
[362341092,1748207436835,-430.0,0.00019452,2]
[362341093,1748207436845,-430.0,0.00019452,2]
[362341094,1748207436858,-430.0,0.00019452,2]
[362341095,1748207436873,-430.0,0.00019452,2]
[362341096,1748207436887,-430.0,0.00019452,2]
[362341097,1748207436902,-430.0,0.00019452,2]
[362341098,1748207436915,-811.73,0.00019452,2]
[362341099,1748207436929,-430.0,0.00019452,2]
[362341100,1748207436944,-430.0,0.00019452,2]
[362341101,1748207436956,-430.0,0.00019452,2]
[362341102,1748207436969,-621.26,0.00019452,2]
[362341103,1748207436984,-637.76,0.00019452,2]
[362341104,1748207436997,-824.11,0.00019452,2]
[362341105,1748207437009,-430.0,0.00019452,2]
[362341106,1748207437024,-1521.81,0.00019452,2]
[362341107,1748207437037,-430.0,0.00019452,2]
[362341108,1748207437051,-430.0,0.00019452,2]
[362341109,1748207437067,-430.0,0.00019452,2]
[362341110,1748207437079,-500.92,0.00019452,2]
[362341111,1748207437091,-1257.88,0.00019452,2]
[362341112,1748207437104,-151.0,0.00019452,2]
[362341113,1748207437119,-151.0,0.00019452,2]
[362341114,1748207437133,-160.10388202,0.00019452,2]
[362341115,1748207437148,-430.0,0.00019452,2]
[362341116,1748207437161,-430.0,0.00019452,2]
[362341117,1748207437175,-688.18,0.00019452,2]
[362341118,1748207437187,-1017.29,0.00019452,2]
[362341119,1748207437201,-430.0,0.00019452,2]
[362341120,1748207437216,-430.0,0.00019452,2]
[362341121,1748207437228,-430.0,0.00019452,2]
[362341122,1748207437242,-430.0,0.00019452,2]
[362341123,1748207437256,-1754.71,0.00019452,2]
[362341124,1748207437269,-430.0,0.00019452,2]
[362341125,1748207437282,-430.0,0.00019452,2]
[362341126,1748207437293,-430.0,0.00019452,2]
[362341127,1748207437306,-504.13,0.00019452,2]
[362341128,1748207437318,-430.0,0.00019452,2]
[362341129,1748207437328,-430.0,0.00019452,2]
[362341130,1748207437340,-430.0,0.00019452,2]
[362341131,1748207437352,-1396.51347961,0.00019521,2]
[362341132,1748207437363,-159.957848,0.00019649,3]
[362341133,1748207437375,-500.0,0.00019672,2]
[362341134,1748207437387,-505.69,0.00019726,2]
[362341135,1748207437400,-430.0,0.00019726,2]
[362341136,1748207437413,-430.0,0.00019726,2]
[362341137,1748207437426,-430.0,0.00019726,2]
[362341138,1748207437438,-430.0,0.00019726,2]
[362341139,1748207437450,-1047.96,0.00019726,2]
[362341140,1748207437464,-430.0,0.00019726,2]
[362341141,1748207437476,-430.0,0.00019726,2]
[362341142,1748207437489,-430.0,0.00019726,2]
[362341143,1748207437503,-430.0,0.00019726,2]
[362341144,1748207437515,-2824.0,0.00019726,2]
[362341145,1748207437526,-430.0,0.00019726,2]
[362341146,1748207437536,-430.0,0.00019726,2]
[362341147,1748207437547,-430.0,0.00019726,2]
[362341148,1748207437558,-484.05,0.00019726,2]
[362341149,1748207437569,-871.24,0.00019726,2]
[362341150,1748207437581,-430.0,0.00019726,2]
[362341151,1748207437593,-2305.7,0.00019726,2]
[362341152,1748207437608,-1468.36,0.00019726,2]
[362341153,1748207437621,-430.0,0.00019726,2]
[362341154,1748207437634,-430.0,0.00019726,2]
[362341155,1748207437645,-196.24550337,0.00019726,2]
[362341156,1748207437656,-430.0,0.00019726,2]
[362341157,1748207437674,-1576.05,0.00019726,2]
[362341158,1748207437689,-430.0,0.00019726,2]
[362341159,1748207437703,-706.49,0.00019726,2]
[362341160,1748207437718,-430.0,0.00019726,2]
[362341161,1748207437731,-430.0,0.00019726,2]
[362341162,1748207437742,-430.0,0.00019726,2]
[362341163,1748207437754,-431.39,0.00019726,2]
[362341164,1748207437764,-430.0,0.00019726,2]
[362341165,1748207437775,-430.0,0.00019726,2]
[362341166,1748207437788,-430.0,0.00019726,2]
[362341168,1748207437800,-500.0,0.00019726,2]
[362341169,1748207437811,-430.0,0.00019726,2]
[362341170,1748207437822,-430.0,0.00019726,2]
[362341171,1748207437834,-430.0,0.00019726,2]
[362341172,1748207437847,-430.0,0.00019726,2]
[362341174,1748207437859,-469.99,0.00019726,2]
[362341176,1748207437870,-430.0,0.00019726,2]
[362341178,1748207437882,-489.9,0.00019726,2]
[362341179,1748207437893,-825.29,0.00019726,2]
[362341180,1748207437904,-430.0,0.00019726,2]
[362341181,1748207437916,-430.0,0.00019726,2]
[362341182,1748207437928,-450.0,0.00019726,2]
[362341183,1748207437940,-467.34104152,0.00019726,2]
[362341184,1748207437952,-430.0,0.00019726,2]
[362341186,1748207437964,-430.0,0.00019726,2]
[362341188,1748207437976,-430.0,0.00019726,2]
[362341191,1748207437987,-811.73,0.00019726,2]
[362341193,1748207437999,-430.0,0.00019726,2]
[362341195,1748207438011,-430.0,0.00019726,2]
[362341197,1748207438024,-430.0,0.00019726,2]
[362341199,1748207438035,-621.26,0.00019726,2]
[362341202,1748207438048,-637.76,0.00019726,2]
[362341204,1748207438059,-824.11,0.00019726,2]
[362341206,1748207438070,-155.0,0.00019726,2]
[362341209,1748207438081,-430.0,0.00019726,2]
[362341211,1748207438092,-1521.81,0.00019726,2]
[362341213,1748207438104,-430.0,0.00019726,2]
[362341215,1748207438115,-430.0,0.00019726,2]
[362341217,1748207438126,-1257.88,0.00019726,2]
[362341220,1748207438137,-430.0,0.00019726,2]
[362341222,1748207438148,-430.0,0.00019726,2]
[362341224,1748207438159,-688.18,0.00019726,2]
[362341226,1748207438169,-1017.29,0.00019726,2]
[362341228,1748207438180,-430.0,0.00019726,2]
[362341231,1748207438191,-430.0,0.00019726,2]
[362341233,1748207438203,-430.0,0.00019726,2]
[362341235,1748207438214,-1754.71,0.00019726,2]
[362341237,1748207438225,-430.0,0.00019726,2]
[362341239,1748207438236,-430.0,0.00019726,2]
[362341242,1748207438247,-430.0,0.00019726,2]
[362341244,1748207438259,-504.13,0.00019726,2]
[362341246,1748207438270,-430.0,0.00019726,2]
[362341248,1748207438281,-430.0,0.00019726,2]
[362341250,1748207438292,-1396.51347961,0.00019728,2]
[362341253,1748207438302,-2200.0,0.00019757,2]
[362341255,1748207438313,-420.0,0.00019772,2]
[362341257,1748207438324,-160.0,0.00019817,3]
[362341259,1748207438336,-1087.18545695,0.0001991,2]
[362341261,1748207438347,-1396.51347961,0.00019934,2]
[362341264,1748207438358,-2000.0,0.0002,2]
[362341266,1748207438369,-430.0,0.0002,2]
[362341269,1748207438380,-430.0,0.0002,2]
[362341273,1748207438391,-430.0,0.0002,2]
[362341275,1748207438403,-430.0,0.0002,2]
[362341277,1748207438414,-162.97469176,0.0002,4]
[362341280,1748207438425,-1047.96,0.0002,2]
[362341282,1748207438436,-430.0,0.0002,2]
[362341284,1748207438446,-430.0,0.0002,2]
[362341286,1748207438458,-158.0,0.0002,2]
[362341289,1748207438469,-430.0,0.0002,2]
[362341291,1748207438480,-430.0,0.0002,2]
[362341293,1748207438491,-2824.0,0.0002,2]
[362341295,1748207438502,-430.0,0.0002,2]
[362341297,1748207438514,-430.0,0.0002,2]
[362341300,1748207438526,-430.0,0.0002,2]
[362341302,1748207438539,-484.05,0.0002,2]
[362341304,1748207438550,-871.24,0.0002,2]
[362341306,1748207438561,-430.0,0.0002,2]
[362341308,1748207438572,-2305.7,0.0002,2]
[362341310,1748207438582,-1468.36,0.0002,2]
[362341313,1748207438593,-430.0,0.0002,2]
[362341315,1748207438604,-430.0,0.0002,2]
[362341317,1748207438615,-1576.05,0.0002,2]
[362341319,1748207438626,-430.0,0.0002,2]
[362341321,1748207438637,-706.49,0.0002,2]
[362341324,1748207438649,-430.0,0.0002,2]
[362341326,1748207438662,-510.00723153,0.0002,2]
[362341328,1748207438673,-430.0,0.0002,2]
[362341330,1748207438685,-431.39,0.0002,2]
[362341332,1748207438696,-430.0,0.0002,2]
[362341334,1748207438708,-430.0,0.0002,2]
[362341336,1748207438719,-430.0,0.0002,2]
[362341339,1748207438730,-430.0,0.0002,2]
[362341341,1748207438742,-430.0,0.0002,2]
[362341343,1748207438752,-430.0,0.0002,2]
[362341363,1748207438948,-430.0,0.0002,2]
[362341366,1748207438967,-469.99,0.0002,2]
[362341369,1748207438981,-423.89,0.0002,2]
[362341371,1748207438991,-489.9,0.0002,2]
[362341373,1748207439001,-825.29,0.0002,2]
[362341375,1748207439011,-165.2949951,0.0002,2]
[362341377,1748207439021,-430.0,0.0002,2]
[362341379,1748207439030,-430.0,0.0002,2]
[362341381,1748207439039,-430.0,0.0002,2]
[362341383,1748207439048,-430.0,0.0002,2]
[362341385,1748207439058,-811.73,0.0002,2]
[362341387,1748207439067,-430.0,0.0002,2]
[362341388,1748207439077,-430.0,0.0002,2]
[362341390,1748207439086,-430.0,0.0002,2]
[362341392,1748207439096,-621.26,0.0002,2]
[362341394,1748207439105,-637.76,0.0002,2]
[362341395,1748207439115,-824.11,0.0002,2]
[362341396,1748207439124,-430.0,0.0002,2]
[362341397,1748207439134,-1521.81,0.0002,2]
[362341398,1748207439144,-430.0,0.0002,2]
[362341400,1748207439154,-430.0,0.0002,2]
[362341402,1748207439163,-1257.88,0.0002,2]
[362341404,1748207439172,-430.0,0.0002,2]
[362341406,1748207439183,-688.18,0.0002,2]
[362341408,1748207439193,-1017.29,0.0002,2]
[362341410,1748207439203,-430.0,0.0002,2]
[362341433,1748207439424,-430.0,0.0002,2]